Workbook

Sheet Indice
A4: Departamento de Desarrollo Rural y Sostenibilidad
A7: Información Ambiental
A8: Solicitudes de información ambiental recibidas en el Departamento de Desarrollo Rural y Sostenibilidad
A11: Los datos se refieren a las solicitudes de información ambiental realizadas por los ciudadanos conforme a lo establecido en la Ley 27/2006, de 18 de julio, por la que se regulan los derechos de acceso a la información, participación pública y de acceso a la justicia en materia de medio ambiente y que han sido recibidas por via postal y correo electrónico en el Departamento de Desarrollo Rural y Sostenibilidad Para el seguimiento y control de estas solicitudes se realiza estas estadísticas que permiten ver su evolución por materias, aspectos ambientales y medio de contacto. El formato y contenido de estas estadísticas ha evolucionado a lo largo del tiempo, adaptándose finalmente a la definición de información ambiental que recoge en el art 2 de Ley 27/2006. La información contenida en este archivo es de libre disposición, pero en el caso caso que se utilice esta información para su publicación, en cualquier soporte, deberá citarse el origen de los datos
A12: INDICE
A13: Información desde 2009 a 2022
A25: Publicación: Servicio de Personal, Asuntos Generales e Información. Secretaría General Técnica. Departamento de Desarrollo Rural y Sostenibilidad
A26: Fuente: Departamento de Desarrollo Rural y Sostenibilidad

Sheet AÑO 2022
A4: Departamento de Agricultura, Ganadería y Medio ambiente.
A6: Información Ambiental
A8: Solicitudes de información ambiental recibidas mediante correo electrónico en ma@aragon.es
A9: en el Departamento de Agricultura, Ganadería y Medio ambiente. Año 2022
A11: Número de peticiones de información ambiental recibidas (suma bandeja electrónica, ma@aragon.es y teléfono
A13: Número de solicitudes de información ambiental por tipo de solicitante
B14: NÚMERO
A15: Administraciones públicas | B15: 65
A16: Asociaciones y ONGs | B16: 53
A17: Ciudadanos | B17: 247
A18: Empresas y profesionales | B18: 579
A19: Otros | B19: 41
A20: Total general | B20: 985
A40: Fuente: Secretaría General Técnica. Departamento de Agricultura, Ganadería y Medio ambiente
A43: Solicitud de información recibida en bandeja de entrada y ma@aragon.es por temáticas. 2022
A79: Fuente: Secretaría General Técnica. Departamento de Agricultura, Ganadería y Medio ambiente
A81: Publicación: Servicio de Personal, Asuntos Generales e Información. Secretaría General Técnica. Departamento de Agricultura, Ganadería y Medio ambiente.

Sheet AÑO 2021
A4: Departamento de Agricultura, Ganadería y Medio ambiente.
A6: Información Ambiental
A8: Solicitudes de información ambiental recibidas mediante correo electrónico en ma@aragon.es
A9: en el Departamento de Agricultura, Ganadería y Medio ambiente. Año 2021
A11: Número de peticiones recibidas por bandeja de entrada electrónica y en la cuenta de correo ma@aragon.es
B13: BANDEJA DE ENTRADA | C13: ma@aragon.es | D13: SUBTOTAL | E13: %
A14: Administración | B14: 4 | C14: 57 | D14: =+B14+C14 -> 61 | E14: =+D14*100/$D$20 -> 8.288043478
A15: Asociación | B15: 3 | C15: 25 | D15: =+B15+C15 -> 28 | E15: =+D15*100/$D$20 -> 3.804347826
A16: Ciudadanía | B16: 43 | C16: 217 | D16: 260 | E16: 35.32608696
A17: Empresas y profesionales | B17: 257 | C17: 108 | D17: 365 | E17: 49.5923913
A18: ONG | B18: 19 | C18: 2 | D18: 21 | E18: 2.85326087
A19: Sindicato | B19: 1 | D19: 1 | E19: 0.1358695652
A20: TOTAL | B20: =SUM(B14:B19) -> 327 | C20: =SUM(C14:C19) -> 409 | D20: =SUM(D14:D19) -> 736 | E20: =+D20*100/$D$20 -> 100
A43: Fuente: Secretaría General Técnica. Departamento de Agricultura, Ganadería y Medio ambiente
A46: Solicitud de información recibida en bandeja de entrada y ma@aragon.es por temáticas. 2021
B48: TEMÁTICA
A49: Agua | B49: 7
A50: Biodiversidad (especies catalogadas) | B50: 80
A51: Calidad del aire | B51: 14
A52: Cambio climático | B52: 4
A53: Cartografía flora y fauna | B53: 262
A54: Caza y pesca | B54: 94
A55: Climatología | B55: 1
A56: Educación Ambiental | B56: 3
A57: Energía | B57: 3
A58: Gestión forestal | B58: 69
A59: Incendios forestales | B59: 4
A60: Información General o administrativa | B60: 64
A61: Informes sobre ejecución legislación | B61: 1
A62: Otros | B62: 26
A63: Publicaciones y materiales | B63: 14
A64: Red Natural de Aragón | B64: 22
A65: Residuos | B65: 64
A66: Ruido | B66: 1
A67: Suelos | B67: 3
B68: =SUM(B49:B67) -> 736
A102: Fuente: Secretaría General Técnica. Departamento de Agricultura, Ganadería y Medio ambiente
A104: Publicación: Servicio de Personal, Asuntos Generales e Información. Secretaría General Técnica. Departamento de Agricultura, Ganadería y Medio ambiente.

Sheet AÑO 2020
A4: Departamento de Agricultura, Ganadería y Medio ambiente.
A6: Información Ambiental
A7: Solicitudes de información ambiental recibidas mediante correo electrónico en ma@aragon.es
A8: en el Departamento de Agricultura, Ganadería y Medio ambiente. Año 2020
A10: Número de peticiones recibidas en la cuenta de correo ma@aragon.es en 2020
B12: Número de solicitudes | C12: %
A13: Ciudadanos | B13: 179 | C13: =+B13/$B$18 -> 0.4475
A14: Empresas y profesionales | B14: 165 | C14: =+B14/$B$18 -> 0.4125
A15: Administraciones públicas | B15: 34 | C15: 0.085
A16: Asociaciones y ONGs | B16: 21 | C16: 0.0525
A17: Otros | B17: 1 | C17: 0.0025
A18: TOTAL | B18: =SUM(B13:B17) -> 400
A37: Fuente: Secretaría General Técnica. Departamento de Agricultura, Ganadería y Medio ambiente
A40: Solicitudes de información ambiental por temáticas recibidas en ma@aragon.es, 2020
B42: Nº de solicitudes
A43: Agua | B43: 6
A44: Biodiversidad | B44: 96
A45: Calidad del aire | B45: 3
A46: Cambio climático | B46: 2
A47: Caza y pesca | B47: 66
A48: Educación ambiental | B48: 4
A49: Energía | B49: 2
A50: Gestión Forestal | B50: 33
A51: Incendios forestales | B51: 16
A52: Información general o administrativa | B52: 37
A53: Organismos modificados geneticámente | B53: 1
A54: Publicaciones y materiales | B54: 3
A55: Red Natural de Aragón | B55: 32
A56: Residuos | B56: 84
A57: Suelos | B57: 10
A58: Tramites administrativos - Formulario | B58: 5
A59: TOTAL | B59: 400

Sheet AÑO 2019
A4: Departamento de Agricultura, Ganadería y Medio ambiente.
A6: Información Ambiental
A7: Solicitudes de información ambiental recibidas mediante correo postal y electrónico
A8: en el Departamento de Agricultura, Ganadería y Medio ambiente. Año 2019
A11: Número de peticiones escritas de información ambiental por tipo de solicitante. Año 2019
A13: Tipo de solicitante | B13: Nº de solicitudes | C13: %
A14: Ciudadanos | B14: 5479 | C14: =+B14/$B$19 -> 0.4518017647
A15: Empresas/profesionales | B15: 4927 | C15: =+B15/$B$19 -> 0.4062834996
A16: Administraciones públicas | B16: 815 | C16: 0.06720540942
A17: Asociaciones/ONG | B17: 757 | C17: 0.06242269316
A18: Otros | B18: 149 | C18: 0.01228663313
A19: TOTAL | B19: =SUM(B14:B18) -> 12127 | C19: =SUM(C14:C18) -> 1
A38: Fuente: Secretaría General Técnica. Departamento de Agricultura, Ganadería y Medio ambiente
A41: Medio utilizado | B41: nº de solicitudes
A42: TELÉFONO | B42: 7251
A43: PRESENCIAL | B43: 2293
A44: CORREO POSTAL | B44: 499
A45: EMAIL | B45: 1653
A46: SEDE ELECTRÓNICA | B46: 431
A47: TOTAL | B47: =SUM(B42:B46) -> 12127
A66: Fuente: Secretaría General Técnica. Departamento de Agricultura, Ganadería y Medio ambiente
A69: Solicitudes de información escrita o en sede electrónica, por temática
B71: EMAIL | C71: POSTAL | D71: SEDE ELECTRÓNICA
A72: Suelo | B72: 1 | C72: 120 | D72: 3
A73: Ruido | B73: 1
A74: Estado de salud y bienes del patrimonio | B74: 1
A75: Análisis supuestos económicos | B75: 4 | C75: 1 | D75: 1
A76: Agua | B76: 8 | C76: 2 | D76: 8
A77: Energía | B77: 10
A78: Atmósfera | B78: 32 | D78: 4
A79: Informes sobre la ejecución de la legislación | B79: 163 | C79: 85 | D79: 9
A80: Paisajes y espacios naturales | B80: 171 | C80: 39 | D80: 56
A81: Diversidad biológica | B81: 359 | C81: 140 | D81: 110
A82: Radiación o residuos | B82: 370 | C82: 4 | D82: 91
A83: Medidas, normas, planes | B83: 533 | C83: 108 | D83: 148
A84: Sustancias peligrosas | D84: 1
A85: TOTAL | B85: 1653 | C85: 499 | D85: 431
A117: Fuente: Secretaría General Técnica. Departamento de Agricultura, Ganadería y Medio ambiente
A119: Publicación: Servicio de Personal, Asuntos Generales e Información. Secretaría General Técnica. Departamento de Agricultura, Ganadería y Medio ambiente.

Sheet AÑO 2018
A4: Departamento de Agricultura, Ganadería y Medio ambiente.
A6: Información Ambiental
A7: Solicitudes de información ambiental recibidas mediante correo postal y electrónico
A8: en el Departamento de Agricultura, Ganadería y Medio ambiente. Año 2018
A11: Número de peticiones escritas de información ambiental por tipo de solicitante. Año 2018.
B13: Tipo de solicitante | C13: Número de solicitudes | D13: %
B14: Administraciones públicas | C14: 238 | D14: 0.0858
B15: Empresas | C15: 995 | D15: 0.359
B16: Asociaciones | C16: 99 | D16: 0.0357
B17: Ciudadanos | C17: 1440 | D17: 0.5195
B18: Total: | C18: =SUM(C14:C17) -> 2772
A45: Número de peticiones escritas de información ambiental por medio de recepción. Año 2018
A46: Fuente: Secretaría General Técnica del Departamento de Agricultura, Ganadería y Medio ambiente.
B48: Correo postal y fax | C48: Correo electrónico y admón. electrónica | D48: Total
B49: 637 | C49: 2135 | D49: 2772
A74: Fuente: Secretaría General Técnica del Departamento de Agricultura, Ganadería y Medio ambiente.
A77: Número de peticiones escritas de información ambiental por área temática. Año 2018
A79: Área temática | B79: Correo postal | C79: Correo electrónico | D79: Total
A80: Agua | B80: 7 | C80: 11 | D80: 18
A81: Atmósfera | B81: 0 | C81: 52 | D81: 52
A82: Diversidad Biológica | B82: 152 | C82: 353 | D82: 505
A83: Organismos modif.genéticamente | B83: 0 | C83: 0 | D83: 0
A84: Energía | B84: 0 | C84: 10 | D84: 10
A85: Paisaje y espacios naturales | B85: 85 | C85: 249 | D85: 334
A86: Residuos | B86: 8 | C86: 586 | D86: 594
A87: Ruido | B87: 0 | C87: 1 | D87: 1
A88: Suelo | B88: 170 | C88: 2 | D88: 172
A89: Sustancias peligrosas | B89: 0 | C89: 0 | D89: 0
A90: Medidas, normas y planes | B90: 135 | C90: 696 | D90: 831
A91: Informes sobre la ejecución de la legislación | B91: 80 | C91: 171 | D91: 251
A92: Análisis y supuestos económicos | B92: 0 | C92: 3 | D92: 3
A93: Estado de la salud y bienes del patrimonio | B93: 0 | C93: 1 | D93: 1
A94: Total | B94: =SUM(B80:B93) -> 637 | C94: =SUM(C80:C93) -> 2135 | D94: =SUM(D80:D93) -> 2772
A127: Fuente: Secretaría General Técnica del Departamento de Agricultura, Ganadería y Medio ambiente.
A129: Publicación: Servicio de Personal, Asuntos Generales e Información. Secretaría General Técnica. Departamento de Agricultura, Ganadería y Medio ambiente.

Sheet AÑO_2017
A4: Departamento de Desarrollo Rural y Sostenibilidad
A7: Información Ambiental
A8: Solicitudes de información ambiental recibidas mediante correo postal y electrónico en el Departamento de Desarrollo Rural y Sostenibilidad. Año 2017
B12: Solicitudes de información ambiental por tipo de solicitante
B14: Tipo de solicitante | C14: Número de solicitudes | D14: %
B15: Administraciones públicas | C15: 281 | D15: 0.0927
B16: Empresas | C16: 1162 | D16: 0.3832
B17: Asociaciones | C17: 174 | D17: 0.0574
B18: Ciudadanos | C18: 1415 | D18: 0.4667
B19: Total: | C19: =SUM(C15:C18) -> 3032
B48: Solicitudes de información ambiental por medio de recepción
B50: Correo postal | C50: Correo electrónico | D50: Total
B51: 567 | C51: 2465 | D51: 3032
B80: Solicitudes de información ambiental por área temática
B84: Área temática | C84: Correo postal | D84: Correo electrónico | E84: Total
B85: Agua | C85: 2 | D85: 326 | E85: 328
B86: Atmósfera | C86: 7 | D86: 29 | E86: 36
B87: Diversidad Biológica | C87: 87 | D87: 365 | E87: 452
B88: Organismos modif.genéticamente | C88: 0 | D88: 0 | E88: 0
B89: Energía | C89: 0 | D89: 5 | E89: 5
B90: Paisaje y espacios naturales | C90: 96 | D90: 223 | E90: 319
B91: Residuos | C91: 18 | D91: 689 | E91: 707
B92: Ruido | C92: 0 | D92: 3 | E92: 3
B93: Suelo | C93: 270 | D93: 7 | E93: 277
B94: Sustancias peligrosas | C94: 0 | D94: 8 | E94: 8
B95: Medidas, normas y planes | C95: 79 | D95: 652 | E95: 731
B96: Informes sobre la ejecución de la legislación | C96: 4 | D96: 156 | E96: 160
B97: Análisis y supuestos económicos | C97: 1 | D97: 2 | E97: 3
B98: Estado de la salud y bienes del patrimonio | C98: 3 | D98: 0 | E98: 3
B99: Total | C99: =SUM(C85:C98) -> 567 | D99: =SUM(D85:D98) -> 2465 | E99: =SUM(E85:E98) -> 3032
B134: Fuente: Secretaría General Técnica del Departamento de Desarrollo Rural y Sostenibilidad
B135: Publicación: Servicio de Personal, Asuntos Generales e Información. Secretaría General Técnica. Departamento de Desarrollo Rural y Sostenibilidad

Sheet AÑO_2016
A4: Departamento de Desarrollo Rural y Sostenibilidad
A7: Información Ambiental
A8: Solicitudes de información ambiental recibidas en el Departamento de Desarrollo Rural y Sostenibilidad. Año 2016
A10: Solicitudes de información ambiental
B12: Nº solicitudes
A13: Tipo de solicitante | B13: Total | C13: Correo postal | D13: Correo electrónico
A14: Administraciones públicas | B14: 377 | C14: 33 | D14: 344
A15: Empresas | B15: 1481 | C15: 130 | D15: 1351
A16: Asociaciones | B16: 228 | C16: 20 | D16: 208
A17: Ciudadanos | B17: 1850 | C17: 162 | D17: 1688
A18: Total | B18: =SUM(B14:B17) -> 3936 | C18: =SUM(C14:C17) -> 345 | D18: =SUM(D14:D17) -> 3591
A20: Solicitudes de información ambiental por tipo de solicitante
A39: Solicitudes de información ambiental por medio de recepción
A57: Solicitudes de información ambiental por área temática
A59: Área temática | B59: Total | C59: Correo postal | D59: Correo electrónico
A60: Aguas | B60: =SUM(C60:D60) -> 1481 | C60: 0 | D60: 1481
A61: Atmósfera | B61: =SUM(C61:D61) -> 47 | C61: 3 | D61: 44
A62: Diversidad biológica | B62: 393 | C62: 87 | D62: 306
A63: Energía | B63: 3 | C63: 0 | D63: 3
A64: Espacios naturales | B64: 261 | C64: 68 | D64: 193
A65: Residuos | B65: 894 | C65: 59 | D65: 835
A66: Organismos modificados genéticamente | B66: 2 | C66: 0 | D66: 2
A67: Ruido | B67: 2 | C67: 0 | D67: 2
A68: Suelo | B68: =SUM(C68:D68) -> 100 | C68: 100 | D68: 0
A69: Sustancias peligrosas | B69: =SUM(C69:D69) -> 12 | C69: 2 | D69: 10
A70: Apartado c) y d) art 2.3 Ley 27/2006 | B70: 741 | C70: 26 | D70: 715
A71: Total | B71: =SUM(B60:B70) -> 3936 | C71: =SUM(C60:C70) -> 345 | D71: =SUM(D60:D70) -> 3591
A98: Publicación: Servicio de Personal, Asuntos Generales e Información. Secretaría General Técnica. Departamento de Desarrollo Rural y Sostenibilidad
A99: Fuente: Departamento de Desarrollo Rural y Sostenibilidad

Sheet AÑO_2015
A4: Departamento de Desarrollo Rural y Sostenibilidad
A7: Información Ambiental
A8: Solicitudes de información ambiental recibidas en el Departamento de Desarrollo Rural y Sostenibilidad. Año 2015
A10: Solicitudes de información ambiental
B12: Nº solicitudes
A13: Tipo de solicitante | B13: Total | C13: Correo postal y Fax | D13: Correo electrónico
A14: Administraciones públicas | B14: 208 | C14: 61 | D14: 147
A15: Empresas | B15: 874 | C15: 255 | D15: 619
A16: Asociaciones | B16: 228 | C16: 66 | D16: 162
A17: Ciudadanos | B17: 999 | C17: 291 | D17: 708
A18: Total | B18: =SUM(B14:B17) -> 2309 | C18: =SUM(C14:C17) -> 673 | D18: =SUM(D14:D17) -> 1636
A20: Solicitudes de información ambiental por tipo de solicitante
A39: Solicitudes de información ambiental por medio de recepción
A57: Solicitudes de información ambiental por área temática
A59: Área temática | B59: Total | C59: Correo postal y Fax | D59: Correo electrónico
A60: Aguas | B60: =SUM(C60:D60) -> 246 | C60: 241 | D60: 5
A61: Atmósfera | B61: =SUM(C61:D61) -> 58 | C61: 16 | D61: 42
A62: Diversidad biológica | B62: 314 | C62: 115 | D62: 199
A63: Energía | B63: 6 | C63: 1 | D63: 5
A64: Espacios naturales | B64: 425 | C64: 142 | D64: 283
A65: Residuos | B65: 1029 | C65: 48 | D65: 981
A66: Organismos modificados genéticamente | B66: 2 | C66: 2 | D66: 0
A67: Ruido | B67: 3 | C67: 0 | D67: 3
A68: Suelo | B68: =SUM(C68:D68) -> 7 | C68: 2 | D68: 5
A69: Sustancias peligrosas | B69: =SUM(C69:D69) -> 11 | C69: 2 | D69: 9
A70: Apartado c) y d) art 2.3 Ley 27/2006 | B70: 208 | C70: 104 | D70: 104
A71: Total | B71: =SUM(B60:B70) -> 2309 | C71: =SUM(C60:C70) -> 673 | D71: =SUM(D60:D70) -> 1636
A98: Publicación: Servicio de Personal, Asuntos Generales e Información. Secretaría General Técnica. Departamento de Desarrollo Rural y Sostenibilidad
A99: Fuente: Departamento de Desarrollo Rural y Sostenibilidad

Sheet AÑO_2014
A6: Medio Ambiente
A7: Información Ambiental
A8: Solicitudes de información ambiental recibidas en el Departamento de Agricultura, Ganadería y Medio Ambiente. Año 2014
A10: Solicitudes de información ambiental
B12: Nº solicitudes
A13: Tipo de solicitante | B13: Total | C13: Correo postal y Fax | D13: Correo electrónico
A14: Administraciones públicas | B14: =SUM(C14:D14) -> 204 | C14: 113 | D14: 91
A15: Empresas | B15: =SUM(C15:D15) -> 238 | C15: 97 | D15: 141
A16: Asociaciones | B16: =SUM(C16:D16) -> 69 | C16: 38 | D16: 31
A17: Ciudadanos | B17: =SUM(C17:D17) -> 424 | C17: 63 | D17: 361
A18: Total | B18: =SUM(B14:B17) -> 935 | C18: =SUM(C14:C17) -> 311 | D18: =SUM(D14:D17) -> 624
A20: Solicitudes de información ambiental por tipo de solicitante
A39: Solicitudes de información ambiental por medio de recepción
A57: Solicitudes de información ambiental por área temática
A59: Área temática | B59: Total | C59: Correo postal y Fax | D59: Correo electrónico
A60: Aguas | B60: =SUM(C60:D60) -> 264 | C60: 37 | D60: 227
A61: Atmósfera | B61: =SUM(C61:D61) -> 48 | C61: 14 | D61: 34
A62: Diversidad biológica | B62: 185 | C62: 88 | D62: 97
A63: Energía | B63: 12 | C63: 3 | D63: 9
A64: Espacios naturales | B64: 266 | C64: 111 | D64: 155
A65: Residuos | B65: 135 | C65: 45 | D65: 90
A66: Organismos modificados genéticamente | B66: 2 | C66: 2 | D66: 0
A67: Ruido | B67: 2 | C67: 0 | D67: 2
A68: Suelo | B68: =SUM(C68:D68) -> 10 | C68: 5 | D68: 5
A69: Sustancias peligrosas | B69: =SUM(C69:D69) -> 7 | C69: 3 | D69: 4
A70: Apartado c) y d) art 2.3 Ley 27/2006 | B70: 4 | C70: 3 | D70: 1
A71: Total | B71: =SUM(B60:B70) -> 935 | C71: =SUM(C60:C70) -> 311 | D71: =SUM(D60:D70) -> 624
A98: Publicación: Servicio de Estudios, Análisis e Información. Secretaría General Técnica. Departamento de Agricultura, Ganadería y Medio Ambiente
A99: Fuente: Departamento de Agricultura, Ganaderia y Medio Ambiente

Sheet AÑO_2013
A6: Medio Ambiente
A7: Información Ambiental
A8: Solicitudes de información ambiental recibidas en el Departamento de Agricultura, Ganadería y Medio Ambiente. Año 2013
A10: Solicitudes de información ambiental
B12: Nº solicitudes
A13: Tipo de solicitante | B13: Total | C13: Correo postal | D13: Correo electrónico
A14: Administraciones públicas | B14: =SUM(C14:D14) -> 184 | C14: 109 | D14: 75
A15: Empresas | B15: =SUM(C15:D15) -> 434 | C15: 166 | D15: 268
A16: Asociaciones | B16: =SUM(C16:D16) -> 53 | C16: 21 | D16: 32
A17: Ciudadanos | B17: =SUM(C17:D17) -> 371 | C17: 45 | D17: 326
A18: Total | B18: =SUM(C18:D18) -> 1042 | C18: 341 | D18: 701
A20: Solicitudes de información ambiental por tipo de solicitante
A39: Solicitudes de información ambiental por medio de recepción
A57: Solicitudes de información ambiental por área temática
A59: Área temática | B59: Total | C59: Correo postal | D59: Correo electrónico
A60: Aguas | B60: =SUM(C60:D60) -> 255 | C60: 28 | D60: 227
A61: Atmósfera | B61: =SUM(C61:D61) -> 91 | C61: 3 | D61: 88
A62: Diversidad biológica | B62: 205 | C62: 100 | D62: 105
A63: Energía | B63: 0 | C63: 0 | D63: 0
A64: Espacios naturales | B64: 286 | C64: 137 | D64: 149
A65: Residuos | B65: 185 | C65: 64 | D65: 121
A66: Ruido | B66: 3 | C66: 0 | D66: 3
A67: Suelo | B67: 3 | C67: 2 | D67: 1
A68: Sustancias peligrosas | B68: 0 | C68: 0 | D68: 0
A69: Apartado c) y d) art 2.3 Ley 27/2006 | B69: 14 | C69: 7 | D69: 7
A70: Total | B70: =SUM(B60:B69) -> 1042 | C70: =SUM(C60:C69) -> 341 | D70: =SUM(D60:D69) -> 701
A97: Publicación: Servicio de Estudios, Análisis e Información. Secretaría General Técnica. Departamento de Agricultura, Ganadería y Medio Ambiente
A98: Fuente: Departamento de Agricultura, Ganaderia y Medio Ambiente

Sheet AÑO_2012
A6: Medio Ambiente
A7: Información Ambiental
A8: Solicitudes de información ambiental recibidas en el Departamento de Agricultura, Ganadería y Medio Ambiente. Año 2012
A10: Solicitudes de información ambiental
B12: Nº solicitudes
A13: Tipo de solicitante | B13: Total | C13: Correo postal | D13: Correo electrónico
A14: Administraciones públicas | B14: 189 | C14: 95 | D14: 94
A15: Empresas | B15: 410 | C15: 225 | D15: 185
A16: Asociaciones | B16: 82 | C16: 31 | D16: 51
A17: Ciudadanos | B17: 550 | C17: 182 | D17: 368
A18: Total | B18: 1231 | C18: 533 | D18: 698
A20: Solicitudes de información ambiental por tipo de solicitante
A39: Solicitudes de información ambiental por medio de recepción
A57: Solicitudes de información ambiental por área temática
A59: Área temática | B59: Total | C59: Correo postal | D59: Correo electrónico
A60: Aguas | B60: 262 | C60: 34 | D60: 228
A61: Atmósfera | B61: 30 | C61: 5 | D61: 25
A62: Diversidad biológica | B62: 306 | C62: 170 | D62: 136
A63: Energía | B63: 13 | C63: 5 | D63: 8
A64: Espacios naturales | B64: 230 | C64: 126 | D64: 104
A65: Residuos | B65: 91 | C65: 5 | D65: 86
A66: Ruido | B66: 1 | C66: 0 | D66: 1
A67: Suelo | B67: 13 | C67: 6 | D67: 7
A68: Sustancias peligrosas | B68: 15 | C68: 4 | D68: 11
A69: Apartado c) y d) art 2.3 Ley 27/2006 | B69: 270 | C69: 178 | D69: 92
A70: Total | B70: 1231 | C70: 533 | D70: 698
A97: Publicación: Servicio de Estudios, Análisis e Información. Secretaría General Técnica. Departamento de Agricultura, Ganadería y Medio Ambiente
A98: Fuente: Departamento de Agricultura, Ganaderia y Medio Ambiente

Sheet AÑO_2011
A6: Medio Ambiente
A7: Información Ambiental
A8: Solicitudes de información ambiental recibidas en el Departamento de Agricultura, Ganadería y Medio Ambiente. Año 2011
A10: Solicitudes de información ambiental
B12: Nº solicitudes
A13: Tipo de solicitante | B13: Total | C13: Correo postal | D13: Correo electrónico
A14: Administraciones públicas | B14: 359 | C14: 203 | D14: 156
A15: Empresas | B15: 671 | C15: 296 | D15: 375
A16: Asociaciones | B16: 308 | C16: 166 | D16: 142
A17: Ciudadanos | B17: 740 | C17: 244 | D17: 496
A18: Total | B18: 2078 | C18: 909 | D18: 1169
A20: Solicitudes de información ambiental por tipo de solicitante
A39: Solicitudes de información ambiental por medio de recepción
A57: Solicitudes de información ambiental por área temática
A59: Área temática | B59: Total | C59: Correo postal | D59: Correo electrónico
A60: Aguas | B60: 452 | C60: 63 | D60: 389
A61: Atmósfera | B61: 38 | C61: 9 | D61: 29
A62: Diversidad biológica | B62: 514 | C62: 246 | D62: 268
A63: Energía | B63: 22 | C63: 8 | D63: 14
A64: Espacios naturales | B64: 302 | C64: 158 | D64: 144
A65: Residuos | B65: 177 | C65: 31 | D65: 146
A66: Ruido | B66: 5 | C66: 0 | D66: 5
A67: Suelo | B67: 66 | C67: 62 | D67: 4
A68: Otras materias | B68: 502 | C68: 332 | D68: 170
A69: Total | B69: 2078 | C69: 909 | D69: 1169
A96: Publicación: Servicio de Estudios, Análisis e Información. Secretaría General Técnica. Departamento de Agricultura, Ganadería y Medio Ambiente
A97: Fuente: Departamento de Agricultura, Ganaderia y Medio Ambiente

Sheet AÑO_2010
A6: Medio Ambiente
A7: Información Ambiental
A8: Solicitudes de información ambiental recibidas en el Departamento de Medio Ambiente. Año 2010
A10: Solicitudes de información ambiental
B12: Nº solicitudes
A13: Tipo de solicitante | B13: Total | C13: Correo postal | D13: Correo electrónico
A14: Administraciones públicas | B14: 884 | C14: 468 | D14: 416
A15: Empresas | B15: 1013 | C15: 605 | D15: 408
A16: Asociaciones | B16: 641 | C16: 171 | D16: 470
A17: Ciudadanos | B17: 722 | C17: 495 | D17: 227
A18: Total | B18: 3260 | C18: 1739 | D18: 1521
A20: Solicitudes de información ambiental por tipo de solicitante
A39: Solicitudes de información ambiental por medio de recepción
A57: Solicitudes de información ambiental por área temática
A59: Área temática | B59: Total | C59: Correo postal | D59: Correo electrónico
A60: Aguas | B60: 112 | C60: 37 | D60: 75
A61: Atmósfera | B61: 276 | C61: 45 | D61: 231
A62: Diversidad biológica | B62: 1192 | C62: 752 | D62: 440
A63: Energía | B63: 59 | C63: 15 | D63: 44
A64: Espacios naturales | B64: 703 | C64: 363 | D64: 340
A65: Residuos | B65: 402 | C65: 189 | D65: 213
A66: Ruido | B66: 12 | C66: 3 | D66: 9
A67: Suelo | B67: 89 | C67: 44 | D67: 45
A68: Otras materias | B68: 415 | C68: 291 | D68: 124
A69: Total | B69: 3260 | C69: 1739 | D69: 1521
A96: Publicación: Servicio de Estudios, Análisis e Información. Secretaría General Técnica. Departamento de Agricultura, Ganadería y Medio Ambiente
A97: Fuente: Departamento de Agricultura, Ganaderia y Medio Ambiente

Sheet AÑO_2009
A6: Medio Ambiente
A7: Información Ambiental
A8: Solicitudes de información ambiental recibidas en el Departamento de Medio Ambiente. Año 2009
A10: Solicitudes de información ambiental
B12: Nº solicitudes
A13: Tipo de solicitante | B13: Total | C13: Correo postal | D13: Correo electrónico
A14: Administraciones públicas | B14: 988 | C14: 629 | D14: 359
A15: Empresas | B15: 1169 | C15: 782 | D15: 387
A16: Asociaciones | B16: 1845 | C16: 714 | D16: 1131
A17: Ciudadanos | B17: 2282 | C17: 902 | D17: 1380
A18: Total | B18: 6284 | C18: 3027 | D18: 3257
A20: Solicitudes de información ambiental por tipo de solicitante
A39: Solicitudes de información ambiental por medio de recepción
A57: Solicitudes de información ambiental por área temática
A59: Área temática | B59: Total | C59: Correo postal | D59: Correo electrónico
A60: Aguas | B60: 497 | C60: 51 | D60: 446
A61: Atmósfera | B61: 650 | C61: 493 | D61: 157
A62: Diversidad biológica | B62: 2252 | C62: 1029 | D62: 1223
A63: Energía | B63: 3 | C63: 1 | D63: 2
A64: Espacios naturales | B64: 1608 | C64: 831 | D64: 777
A65: Residuos | B65: 669 | C65: 304 | D65: 365
A66: Ruido | B66: 4 | C66: 0 | D66: 4
A67: Suelo | B67: 296 | C67: 282 | D67: 14
A68: Otras materias | B68: 305 | C68: 36 | D68: 269
A69: Total | B69: 3260 | C69: 1739 | D69: 1521
A96: Publicación: Servicio de Estudios, Análisis e Información. Secretaría General Técnica. Departamento de Agricultura, Ganadería y Medio Ambiente
A97: Fuente: Departamento de Agricultura, Ganaderia y Medio Ambiente
